bitfinex-derivatives/quotes_BTCF0:USTF0_20210707
["timestamp","ask_amount","ask_price","bid_price","bid_amount"]
[1625644585102,0.72611088,34676.0,34675.0,0.40917986]
[1625644585222,0.72611088,34676.0,34672.0,0.08429566]
[1625644585343,0.72611088,34676.0,34671.0,0.33718265]
[1625644585520,0.72611088,34676.0,34668.0,0.42158922]
[1625644585645,0.48682919,34672.0,34662.0,1.34908551]
[1625644585765,0.48682919,34672.0,34659.0,0.08433738]
[1625644586006,0.48682919,34672.0,34653.0,0.0859]
[1625644586007,0.48570305,34663.0,34650.0,0.08437299]
[1625644586180,0.73800305,34663.0,34650.0,7.299e-05]
[1625644586300,0.73800305,34663.0,34640.0,1.51871378]
[1625644586301,0.08023076,34659.0,34632.0,0.41903979]
[1625644586542,0.08023076,34659.0,34626.0,1.34092733]
[1625644586543,4.9978,34633.0,34630.0,0.33523712]
[1625644586670,5.25925,34633.0,34629.0,0.47090208]
[1625644586787,5.25925,34633.0,34627.0,0.39226958]
[1625644587026,0.72172632,34628.0,34627.0,0.33526958]
[1625644587206,0.72172632,34628.0,34622.0,0.33521122]
[1625644587506,0.72172632,34628.0,34621.0,0.24057544]
[1625644588405,0.0871,34627.0,34621.0,0.24057544]
[1625644588588,0.24057544,34628.0,34621.0,0.24057544]
[1625644588767,5.25925,34633.0,34621.0,0.24057544]
[1625644589007,5.25925,34633.0,34632.0,0.47115088]
[1625644589129,0.24057544,34636.0,34632.0,0.47115088]
[1625644589790,0.24057544,34636.0,34633.0,0.057]
[1625644590630,0.24057544,34643.0,34633.0,0.057]
[1625644590752,0.24057544,34646.0,34633.0,0.38978]
[1625644590992,0.24057544,34646.0,34645.0,0.48115088]
[1625644591112,0.24057544,34652.0,34645.0,0.48115088]
[1625644591291,0.24057544,34655.0,34646.0,0.057]
[1625644591711,0.24057544,34659.0,34646.0,0.057]
[1625644591833,0.24057544,34659.0,34653.0,0.057]
[1625644592134,0.24057544,34659.0,34652.0,5.43017]
[1625644592251,0.24057544,34659.0,34645.0,0.48115088]
[1625644592918,0.24057544,34659.0,34649.0,4.9952]
[1625644593042,0.24057544,34659.0,34658.0,0.24057544]
[1625644593638,0.24057544,34659.0,34649.0,4.9952]
[1625644593762,0.24057544,34659.0,34645.0,0.48115088]
[1625644593939,0.51537544,34659.0,34625.0,1.0]
[1625644594119,0.51537544,34659.0,34626.0,1.0]
[1625644594239,0.51537544,34659.0,34624.0,1.0]
[1625644594421,0.51537544,34659.0,34624.0,0.057]
[1625644594719,0.51537544,34659.0,34624.0,0.35731]
[1625644594960,0.24057544,34659.0,34649.0,4.933]
[1625644595082,0.24057544,34659.0,34657.0,0.24057544]
[1625644595201,0.24057544,34659.0,34657.0,0.53725544]
[1625644596289,0.24057544,34659.0,34657.0,0.24057544]
[1625644596467,0.24057544,34659.0,34653.0,0.24057544]
[1625644596588,0.46700544,34659.0,34653.0,0.29757544]
[1625644597071,0.24057544,34654.0,34653.0,0.29757544]
[1625644597312,0.24057544,34654.0,34653.0,0.24057544]
[1625644597430,0.0675529,34654.0,34653.0,0.24057544]
[1625644597551,0.0675529,34654.0,34643.0,0.24057544]
[1625644599053,0.0675529,34654.0,34650.0,0.24057544]
[1625644599293,0.0675529,34654.0,34650.0,0.54821544]
[1625644601094,0.0675529,34654.0,34653.0,0.24057544]
[1625644604345,0.0675529,34654.0,34644.0,3.6527]
[1625644604462,0.3251029,34654.0,34644.0,3.6527]
[1625644605183,0.3251029,34654.0,34650.0,0.24057544]
[1625644606506,0.3251029,34654.0,34644.0,0.001]
[1625644607107,0.24057544,34645.0,34644.0,0.001]
[1625644607350,0.55102544,34645.0,34644.0,0.001]
[1625644608372,0.55102544,34645.0,34643.0,0.48315088]
[1625644609993,0.55102544,34645.0,34643.0,0.002]
[1625644610292,0.55102544,34645.0,34634.0,0.24057544]
[1625644611135,0.24057544,34635.0,34634.0,0.24057544]
[1625644611434,0.24057544,34635.0,34634.0,0.29757544]
[1625644611856,0.24057544,34645.0,34634.0,0.29757544]
[1625644612036,0.24057544,34645.0,34634.0,0.61212544]
[1625644612882,0.24057544,34645.0,34635.0,0.06217053]
[1625644613061,0.24057544,34645.0,34635.0,0.00517053]
[1625644613179,0.24057544,34645.0,34640.0,0.24057544]
[1625644614380,0.24057544,34645.0,34642.0,0.002]
[1625644614981,0.24057544,34645.0,34643.0,0.00500844]
[1625644617380,0.24157544,34645.0,34643.0,0.00500844]
[1625644617681,0.24157544,34645.0,34641.0,0.00500878]
[1625644617981,0.24157544,34645.0,34640.0,0.24057544]
[1625644617982,0.24157544,34645.0,34644.0,0.00500859]
[1625644618221,0.24157544,34645.0,34644.0,0.057]
[1625644618524,0.24157544,34645.0,34644.0,0.06200813]
[1625644619063,0.24157544,34645.0,34644.0,0.00500813]
[1625644619184,0.24157544,34645.0,34644.0,0.24558357]
[1625644620025,0.24157544,34645.0,34644.0,0.00500813]
[1625644620385,0.24157544,34645.0,34643.0,0.00499743]
[1625644620507,0.52164544,34645.0,34643.0,0.00499743]
[1625644620805,0.52164544,34645.0,34643.0,0.06199743]
[1625644621225,0.52164544,34645.0,34644.0,0.00499702]
[1625644621466,0.24157544,34645.0,34644.0,0.00499702]
[1625644623390,0.24157544,34645.0,34643.0,0.00499629]
[1625644623689,0.24157544,34645.0,34644.0,0.00499632]
[1625644623870,0.24157544,34645.0,34643.0,0.00499661]
[1625644625010,0.24157544,34645.0,34644.0,0.057]
[1625644625133,0.001,34645.0,34644.0,0.057]
[1625644625495,0.001,34645.0,34644.0,0.06199668]
[1625644627174,0.001,34645.0,34644.0,0.00499668]
[1625644627296,0.001,34645.0,34644.0,0.06199668]
[1625644629340,0.001,34645.0,34644.0,0.00499668]
[1625644630001,0.001,34645.0,34643.0,0.00499677]
[1625644630180,0.30049,34645.0,34643.0,0.00499677]
[1625644631276,0.24057544,34644.0,34643.0,0.00499677]
[1625644633069,0.24057544,34644.0,34634.0,0.24057544]
[1625644633309,0.48115088,34639.0,34634.0,0.24057544]
[1625644633729,0.48115088,34639.0,34638.0,0.00599145]
[1625644635356,0.48115088,34639.0,34638.0,0.00499145]
[1625644636017,0.98115088,34639.0,34638.0,0.00499145]
[1625644636139,0.98115088,34639.0,34637.0,0.001]
[1625644636439,0.48115088,34639.0,34632.0,0.002]
[1625644636678,0.01233906,34638.0,34632.0,0.002]
[1625644636800,0.26097906,34638.0,34632.0,0.002]
[1625644637102,0.5,34637.0,34632.0,0.002]
[1625644637218,0.51234009,34637.0,34632.0,0.002]
[1625644637340,0.48115088,34633.0,34632.0,0.002]
[1625644637639,0.98115088,34633.0,34632.0,0.002]
[1625644637878,0.48115088,34633.0,34632.0,0.002]
[1625644638242,0.48115088,34633.0,34612.0,0.057]
[1625644638364,0.48115088,34633.0,34605.0,0.24057544]
[1625644638483,0.63503771,34632.0,34605.0,0.24057544]
[1625644638602,0.6473796,34632.0,34613.0,0.00496375]
[1625644638728,1.0,34624.0,34613.0,0.00496375]
[1625644638906,1.24322,34624.0,34606.0,0.00497018]
[1625644639025,0.5,34623.0,34606.0,0.00497018]
[1625644639144,0.5,34623.0,34588.0,0.56106281]
[1625644639265,0.24057544,34592.0,34591.0,0.057]
[1625644639386,0.45064544,34592.0,34589.0,0.6716704]
[1625644639627,0.45064544,34592.0,34583.0,1.00758438]
[1625644639628,0.45064544,34592.0,34591.0,0.00496588]
[1625644639924,0.45064544,34592.0,34585.0,0.00496631]
[1625644640225,0.45064544,34592.0,34585.0,0.06196631]
[1625644640469,0.45064544,34592.0,34585.0,1.06959767]
[1625644640586,0.45064544,34592.0,34586.0,0.00496596]
[1625644640889,0.45064544,34592.0,34574.0,1.00786941]
[1625644641128,0.94390051,34587.0,34554.0,1.0085811]
[1625644641373,0.94390051,34587.0,34550.0,1.3447748]
[1625644641374,0.96230176,34559.0,34550.0,1.00875622]
[1625644641491,1.21992176,34559.0,34550.0,0.97775622]
[1625644641609,3.5037,34558.0,34550.0,0.97775622]
[1625644641729,3.5037,34558.0,34538.0,1.68126036]
[1625644641730,3.5037,34558.0,34537.0,1.00885698]
[1625644642033,3.5037,34558.0,34540.0,1.00892816]
[1625644642272,1.21992176,34559.0,34538.0,1.1771148]
[1625644642447,1.21992176,34559.0,34538.0,1.2341148]
[1625644642748,0.97934632,34559.0,34538.0,0.057]
[1625644643288,0.97934632,34559.0,34553.0,0.24057544]
[1625644643651,0.72172632,34559.0,34554.0,0.057]
[1625644645334,0.24057544,34559.0,34558.0,0.24057544]
[1625644645449,0.24057544,34559.0,34558.0,0.29757544]
[1625644645930,0.77,34589.0,34558.0,0.29757544]
[1625644646050,0.77,34589.0,34559.0,0.5]
[1625644646171,0.77,34589.0,34560.0,0.057]
[1625644646351,1.25337271,34603.0,34563.0,1.0]
[1625644646473,1.25443921,34606.0,34564.0,0.057]
[1625644646591,1.25443921,34606.0,34569.0,1.0]
[1625644646716,1.25568119,34611.0,34570.0,0.557]
[1625644646836,1.25568119,34611.0,34570.0,0.057]
[1625644646955,1.25568229,34615.0,34570.0,0.486768]
[1625644647316,0.004,34574.0,34565.0,0.057]
[1625644647436,0.004,34574.0,34560.0,0.0315]
[1625644647799,0.004,34574.0,34555.0,2.33528911]
[1625644647978,0.004,34574.0,34561.0,0.435925]
[1625644648354,0.004,34574.0,34562.0,0.057]
[1625644648586,0.004,34574.0,34562.0,0.491108]
[1625644648940,0.004,34574.0,34562.0,0.057]
[1625644649061,0.004,34574.0,34562.0,0.35669]
[1625644649184,0.004,34574.0,34564.0,0.057]
[1625644649302,0.004,34574.0,34573.0,0.96230176]
[1625644649782,0.004,34574.0,34573.0,1.01930176]
[1625644649963,0.004,34574.0,34573.0,1.28274176]
[1625644650202,0.07616739,34588.0,34573.0,1.22574176]
[1625644650384,0.004,34574.0,34573.0,1.22574176]
[1625644650626,0.32425,34574.0,34573.0,0.96230176]
[1625644650868,0.32425,34574.0,34573.0,0.48115088]
[1625644651406,0.80540088,34574.0,34573.0,0.48115088]
[1625644653093,0.80540088,34574.0,34568.0,0.057]
[1625644653209,0.80540088,34574.0,34565.0,0.24057544]
[1625644653389,0.24057544,34569.0,34565.0,0.24057544]
[1625644654350,0.004,34575.0,34565.0,0.24057544]
[1625644654472,0.004,34575.0,34566.0,0.057]
[1625644654593,0.004,34575.0,34566.0,0.557]
[1625644654835,0.004,34575.0,34566.0,0.99018]
[1625644655010,0.004,34575.0,34566.0,0.49018]
[1625644655373,0.004,34575.0,34574.0,0.41372632]
[1625644656155,0.004,34575.0,34574.0,0.35672632]
[1625644656393,0.001,34575.0,34574.0,0.35672632]
[1625644657293,0.001,34575.0,34574.0,0.41372632]
[1625644662464,0.002,34580.0,34574.0,0.91372632]
[1625644662581,0.002,34580.0,34574.0,0.41372632]
[1625644663366,0.002,34580.0,34579.0,0.48115088]
[1625644663485,0.002,34580.0,34579.0,0.53815088]
[1625644665952,0.002,34580.0,34579.0,1.03815088]
[1625644666317,0.003,34585.0,34579.0,0.53815088]
[1625644666433,0.003,34585.0,34579.0,0.54310352]
[1625644666616,0.003,34585.0,34579.0,1.04310352]
[1625644666794,0.003,34585.0,34580.0,0.00495275]
[1625644667458,0.24057544,34606.0,34585.0,0.057]
[1625644667814,0.24057544,34606.0,34585.0,0.06195247]
[1625644668114,0.24057544,34606.0,34586.0,0.00495208]
[1625644668354,0.002,34588.0,34586.0,0.00495208]
[1625644669496,0.002,34588.0,34587.0,0.53815088]
[1625644669796,0.002,34588.0,34587.0,0.54310288]
[1625644670097,0.002,34588.0,34587.0,1.04310288]
[1625644670339,0.002,34588.0,34587.0,0.54310288]
[1625644670877,0.002,34588.0,34587.0,1.04310288]
[1625644671120,0.002,34588.0,34587.0,0.54310288]
[1625644672079,0.002,34588.0,34587.0,1.04310288]
[1625644672800,0.002,34588.0,34587.0,0.54310288]
[1625644672983,0.002,34588.0,34587.0,1.04310288]
[1625644673464,0.003,34593.0,34587.0,1.04310288]
[1625644673765,0.003,34593.0,34588.0,0.00495092]
[1625644674970,0.003,34593.0,34590.0,0.057]
[1625644675091,0.003,34593.0,34590.0,0.557]
[1625644675210,0.004,34598.0,34590.0,0.557]
[1625644675330,0.004,34598.0,34591.0,0.00493652]
[1625644675509,0.004,34598.0,34597.0,0.77872632]
[1625644675689,0.004,34598.0,34597.0,1.27872632]
[1625644675869,0.004,34598.0,34597.0,1.28366295]
[1625644676168,0.004,34598.0,34597.0,0.78366295]
[1625644676473,0.004,34598.0,34597.0,1.28366295]
[1625644676659,0.004,34598.0,34597.0,1.60631295]
[1625644676840,0.004,34598.0,34597.0,1.69351295]
[1625644676957,0.004,34598.0,34597.0,1.60631295]
[1625644677432,0.003,34601.0,34600.0,0.24057544]
[1625644677614,0.003,34601.0,34600.0,0.29757544]
[1625644677853,0.003,34601.0,34600.0,1.22735044]
[1625644677973,0.003,34601.0,34600.0,1.31275044]
[1625644678996,0.24057544,34634.0,34600.0,1.31275044]
[1625644679116,0.47265909,34636.0,34601.0,0.5]
[1625644679238,1.42436851,34639.0,34601.0,0.5]
[1625644679358,1.42436851,34639.0,34602.0,0.557]
[1625644679478,0.951,34639.0,34638.0,0.96230176]
[1625644679597,0.951,34639.0,34638.0,1.36534176]
[1625644679718,0.951,34639.0,34638.0,1.30834176]
[1625644680563,0.951,34639.0,34638.0,1.06776632]
[1625644680683,0.951,34639.0,34629.0,0.22467]
[1625644681283,0.951,34639.0,34614.0,3.5906]
[1625644681403,1.28579,34639.0,34614.0,3.5906]
[1625644681522,0.24057544,34620.0,34618.0,0.24057544]
[1625644681762,0.24057544,34620.0,34619.0,0.057]
[1625644682304,0.24057544,34620.0,34618.0,0.24057544]
[1625644682603,0.19847544,34620.0,34618.0,0.24057544]
[1625644682784,0.19029544,34620.0,34618.0,0.24057544]
[1625644682902,0.19029544,34620.0,34619.0,0.057]
[1625644682903,0.0171595,34620.0,34619.0,0.057]
[1625644683625,0.0171595,34620.0,34618.0,0.24057544]
[1625644685065,0.0171595,34620.0,34619.0,0.057]
[1625644685369,0.0171595,34620.0,34619.0,0.35358]
[1625644686330,0.24057544,34626.0,34619.0,0.35358]
[1625644686453,0.001,34624.0,34619.0,0.35358]
[1625644687469,0.001,34624.0,34623.0,0.48115088]
[1625644687649,0.001,34624.0,34623.0,0.53815088]
[1625644690951,0.001,34624.0,34623.0,0.81955088]
[1625644691432,0.31406189,34638.0,34623.0,0.81955088]
[1625644691553,0.31406189,34638.0,34633.0,0.057]
[1625644691912,0.31406189,34638.0,34632.0,0.24057544]
[1625644692032,0.55061189,34638.0,34632.0,0.24057544]
[1625644692335,0.003,34635.0,34632.0,0.24057544]
[1625644692694,0.003,34635.0,34633.0,0.057]
[1625644693535,0.24057544,34634.0,34633.0,0.057]
[1625644695157,0.24057544,34634.0,34632.0,0.24057544]
[1625644695280,0.24057544,34634.0,34633.0,0.057]
[1625644695698,0.24057544,34634.0,34632.0,0.48115088]
[1625644696180,0.24057544,34634.0,34633.0,0.057]
[1625644696601,0.24057544,34634.0,34632.0,0.48115088]
[1625644697259,0.24057544,34634.0,34633.0,0.057]
[1625644700209,0.24057544,34634.0,34632.0,0.48215088]
[1625644700509,0.24057544,34634.0,34632.0,0.24157544]
[1625644700991,0.07348645,34638.0,34632.0,0.24157544]
[1625644701232,0.07348645,34638.0,34633.0,0.057]
[1625644701652,0.07348645,34638.0,34637.0,0.24057544]
[1625644702191,0.07348645,34638.0,34633.0,0.24057544]
[1625644702313,0.07348645,34638.0,34635.0,0.057]
[1625644703578,0.07348645,34638.0,34637.0,0.24057544]
[1625644704539,0.07348645,34638.0,34637.0,0.29757544]
[1625644704662,0.951,34639.0,34637.0,0.56200544]
[1625644705501,0.951,34639.0,34638.0,0.0049266]
[1625644705684,0.951,34639.0,34638.0,0.30250204]
[1625644706042,0.951,34639.0,34638.0,0.29757544]
[1625644706289,0.24057544,34648.0,34638.0,0.30250206]
[1625644706946,0.24057544,34648.0,34639.0,0.00492641]
[1625644707126,0.06954291,34648.0,34644.0,0.057]
[1625644707245,0.003,34650.0,34644.0,0.057]
[1625644707366,0.003,34650.0,34644.0,0.38946]
[1625644707485,0.003,34650.0,34644.0,0.39438596]
[1625644707606,0.003,34650.0,34649.0,0.72172632]
[1625644707725,0.003,34650.0,34649.0,0.77872632]
[1625644708267,0.003,34650.0,34649.0,0.78365017]
[1625644708385,0.31914027,34663.0,34649.0,1.28365017]
[1625644708508,0.3196732,34669.0,34649.0,0.78365017]
[1625644708626,0.3196732,34669.0,34650.0,0.5]
[1625644708751,0.32004533,34673.0,34651.0,0.057]
[1625644708866,0.32004533,34673.0,34651.0,0.3544]
[1625644708986,0.47998803,34674.0,34651.0,0.3544]
[1625644708987,0.47998803,34674.0,34652.0,0.5]
[1625644708988,0.32020084,34674.0,34652.0,0.5]
[1625644709167,0.32020084,34674.0,34653.0,0.057]
[1625644709293,0.32020084,34674.0,34653.0,0.0619222]
[1625644709412,0.80043248,34675.0,34653.0,0.0619222]
[1625644709530,0.80043248,34675.0,34655.0,0.057]
[1625644709707,0.56077212,34674.0,34673.0,0.56207544]
[1625644709946,0.24057544,34674.0,34673.0,0.22106794]
[1625644711513,0.24057544,34674.0,34673.0,0.27806794]
[1625644711688,0.24057544,34674.0,34673.0,0.51864338]
[1625644712472,0.24057544,34674.0,34673.0,0.46164338]
[1625644713552,0.24057544,34674.0,34673.0,0.24057544]
[1625644713674,0.48115088,34674.0,34673.0,0.24057544]
[1625644715474,0.48115088,34674.0,34666.0,0.24057544]
[1625644715602,0.30821787,34674.0,34659.0,0.24057544]
[1625644715718,0.24057544,34664.0,34659.0,0.24057544]
[1625644715848,0.56176544,34664.0,34659.0,0.24057544]
[1625644717399,0.56176544,34664.0,34663.0,0.24357544]
[1625644717815,0.24057544,34664.0,34663.0,0.24357544]
[1625644718356,0.30821787,34674.0,34663.0,0.24357544]
[1625644718477,0.62742336,34674.0,34663.0,0.24357544]
[1625644719140,0.3193898,34672.0,34663.0,0.24357544]
[1625644719258,0.6584998,34672.0,34663.0,0.24357544]
[1625644719380,0.79761245,34669.0,34663.0,0.003]
[1625644719680,0.31895637,34667.0,34659.0,0.24057544]
[1625644719801,0.72764088,34664.0,34659.0,0.24057544]
[1625644720342,0.72764088,34664.0,34663.0,0.003]
[1625644720705,0.72764088,34664.0,34659.0,0.24057544]
[1625644721490,1.52506972,34664.0,34659.0,0.24057544]
[1625644721606,1.52506972,34664.0,34658.0,0.004]
[1625644721727,0.24057544,34659.0,34658.0,0.004]
[1625644723350,0.24057544,34659.0,34657.0,0.004]
[1625644724855,1.0390951,34659.0,34657.0,0.004]
[1625644725097,0.31938834,34658.0,34657.0,0.004]
[1625644725338,1.11723709,34658.0,34657.0,0.004]
[1625644726359,1.11723709,34658.0,34656.0,0.001]
[1625644726478,0.47883869,34658.0,34656.0,0.001]
[1625644726721,0.31933295,34657.0,34656.0,0.001]
[1625644727323,0.47926365,34657.0,34656.0,0.001]
[1625644727805,0.71983909,34657.0,34656.0,0.001]
[1625644728346,1.35890051,34657.0,34656.0,0.001]
[1625644728829,2.31817551,34657.0,34651.0,0.002]
[1625644729130,0.31993489,34655.0,34651.0,0.002]
[1625644729312,0.79982002,34656.0,34651.0,0.002]
[1625644729428,0.79982002,34656.0,34652.0,0.26144]
[1625644730031,0.3200375,34655.0,34652.0,0.26144]
[1625644730149,0.3200375,34655.0,34652.0,0.31844]
[1625644730273,1.04090906,34657.0,34652.0,0.31844]
[1625644730450,1.04090906,34657.0,34652.0,0.26144]
[1625644730569,0.32014089,34656.0,34652.0,0.26144]
[1625644730811,0.8007922,34655.0,34652.0,0.26144]
[1625644731172,0.4804433,34655.0,34651.0,0.002]
[1625644731592,1.12073774,34655.0,34651.0,0.002]
[1625644731834,2.08053884,34655.0,34651.0,0.002]
[1625644732253,3.20033654,34655.0,34651.0,0.002]
[1625644733033,3.20033654,34655.0,34647.0,0.24057544]
[1625644733034,2.08109518,34652.0,34647.0,0.24057544]
[1625644733513,0.32024599,34649.0,34647.0,0.24057544]
[1625644733754,0.8005838,34650.0,34647.0,0.24057544]
[1625644733875,0.24057544,34648.0,34647.0,0.24057544]
[1625644734777,0.72150985,34648.0,34647.0,0.24057544]
[1625644735018,0.48093441,34648.0,34647.0,0.24057544]
[1625644735919,0.32056954,34648.0,34647.0,0.24057544]
[1625644736039,0.32056954,34648.0,34647.0,0.29757544]
[1625644736219,0.48098767,34648.0,34647.0,0.29757544]
[1625644736342,0.16046892,34649.0,34647.0,0.29757544]
[1625644736460,0.16046892,34649.0,34647.0,0.58174544]
[1625644736823,0.64139477,34651.0,34647.0,0.58174544]
[1625644736824,0.48145819,34651.0,34647.0,0.58174544]
[1625644737063,0.48175961,34650.0,34647.0,0.58174544]
[1625644737601,0.16064003,34650.0,34647.0,0.58174544]
[1625644737781,0.16064003,34650.0,34647.0,0.52474544]
[1625644738023,0.16065379,34649.0,34647.0,0.52474544]
[1625644738385,0.48174478,34649.0,34647.0,0.52474544]
[1625644738625,0.16065379,34649.0,34647.0,0.52474544]
[1625644738805,0.16065379,34649.0,34648.0,0.057]
[1625644738925,0.16081544,34650.0,34648.0,0.057]
[1625644739105,0.48230475,34651.0,34648.0,0.057]
[1625644739344,0.16081685,34650.0,34648.0,0.057]
[1625644739646,0.80359947,34651.0,34648.0,0.057]
[1625644739647,0.16086839,34651.0,34648.0,0.057]
[1625644739945,0.72304846,34652.0,34651.0,0.057]
[1625644740304,1.04448062,34652.0,34651.0,0.057]
[1625644740607,0.1609034,34652.0,34651.0,0.057]
[1625644740906,1.12534636,34656.0,34651.0,0.057]
[1625644740907,0.1612444,34659.0,34651.0,0.488878]
[1625644741085,0.1612444,34659.0,34651.0,0.988878]
[1625644741210,0.16336521,34662.0,34651.0,0.988878]
[1625644741446,0.002,34662.0,34652.0,0.00491734]
[1625644741567,0.002,34662.0,34652.0,0.17341973]
[1625644741686,0.002,34662.0,34653.0,0.1442]
[1625644741808,0.002,34662.0,34653.0,0.987126]
[1625644741927,0.002,34662.0,34656.0,0.77872632]
[1625644742107,0.002,34662.0,34656.0,1.08920632]
[1625644742232,0.002,34662.0,34656.0,2.02383232]
[1625644742348,0.62559029,34669.0,34656.0,2.02383232]
[1625644742469,0.62559029,34669.0,34656.0,2.02874886]
[1625644742828,0.62559029,34669.0,34658.0,0.557]
[1625644742951,0.97047333,34674.0,34658.0,0.557]
[1625644743068,0.97047333,34674.0,34658.0,0.99452668]
[1625644743310,0.9813,34676.0,34672.0,0.057]
[1625644743671,0.97062023,34680.0,34672.0,0.057]
[1625644743851,0.97062023,34680.0,34679.0,0.96230176]
[1625644743971,0.97062023,34680.0,34679.0,1.27599176]
[1625644744092,0.97118038,34682.0,34679.0,1.27599176]
[1625644744454,0.01243793,34680.0,34679.0,1.27599176]
[1625644744692,0.98388898,34680.0,34679.0,1.27599176]
[1625644745173,0.01243793,34680.0,34679.0,1.27599176]
[1625644745839,0.97185276,34682.0,34679.0,1.27599176]
[1625644746323,0.97144372,34684.0,34679.0,1.27599176]
[1625644746621,0.97187699,34685.0,34679.0,1.27599176]
[1625644746861,0.97248401,34688.0,34679.0,1.27599176]
[1625644747346,0.001,34686.0,34679.0,1.27599176]
[1625644747885,0.001,34686.0,34685.0,0.48115088]
[1625644747886,0.97322789,34686.0,34685.0,0.48115088]
[1625644748005,0.97322789,34686.0,34685.0,0.53815088]
[1625644748249,0.001,34686.0,34685.0,0.53815088]
[1625644748365,0.001,34686.0,34685.0,0.48115088]
[1625644748487,2.10423288,34686.0,34685.0,0.48115088]
[1625644748908,3.39765628,34686.0,34685.0,0.48115088]
[1625644749811,3.39765628,34686.0,34685.0,0.14030315]
[1625644749933,3.87880716,34686.0,34685.0,0.14030315]
[1625644750293,3.87880716,34686.0,34679.0,0.58135088]
[1625644750473,4.11986716,34686.0,34679.0,0.58135088]
[1625644750653,0.96922535,34681.0,34679.0,0.58135088]
[1625644750772,0.96922535,34681.0,34679.0,0.63835088]
[1625644750954,0.968798,34680.0,34679.0,0.58135088]
[1625644751073,0.79599498,34680.0,34679.0,0.58135088]
[1625644751554,1.92582376,34680.0,34679.0,0.34077544]
[1625644751673,1.92582376,34680.0,34679.0,0.1002]
[1625644751914,2.40697464,34680.0,34679.0,0.1002]
[1625644752036,3.69792353,34680.0,34679.0,0.1002]
[1625644753056,3.69792353,34680.0,34673.0,0.24057544]
[1625644753239,3.69792353,34680.0,34672.0,0.001]
[1625644753363,1.46530906,34674.0,34672.0,0.001]
[1625644753659,2.41573255,34673.0,34668.0,0.24057544]
[1625644754019,0.72172632,34669.0,34668.0,0.24057544]
[1625644754382,0.72172632,34669.0,34665.0,0.057]
[1625644754501,0.72172632,34669.0,34654.0,0.24057544]
[1625644754918,0.72172632,34669.0,34665.0,0.057]
[1625644755461,0.72172632,34669.0,34654.0,0.24057544]
[1625644755940,0.72172632,34669.0,34665.0,0.057]
[1625644756120,0.72172632,34669.0,34654.0,0.48115088]
[1625644756361,0.72172632,34669.0,34668.0,0.001]
[1625644759002,0.72172632,34669.0,34661.0,0.18415088]
[1625644759123,1.85427479,34669.0,34664.0,0.057]
[1625644759365,0.72172632,34669.0,34662.0,0.057]
[1625644759606,1.85481814,34669.0,34662.0,0.057]
[1625644759965,0.24057544,34663.0,34662.0,0.057]
[1625644760084,1.85481814,34669.0,34662.0,0.057]
[1625644760085,0.72172632,34669.0,34662.0,0.057]
[1625644760207,0.72172632,34669.0,34662.0,0.35492]
[1625644761169,0.24057544,34669.0,34662.0,0.35492]
[1625644761468,0.001,34675.0,34662.0,0.35492]
[1625644761588,0.001,34675.0,34670.0,4.3237]
[1625644761709,0.001,34675.0,34671.0,0.057]
[1625644762009,0.001,34675.0,34674.0,0.48115088]
[1625644762130,0.001,34675.0,34674.0,0.53815088]
[1625644762371,0.24057544,34678.0,34674.0,0.53815088]
[1625644763451,0.002,34679.0,34674.0,0.53815088]
[1625644764051,0.002,34679.0,34678.0,0.24057544]
[1625644764173,0.002,34679.0,34678.0,0.63923544]
[1625644765434,1.13933592,34681.0,34678.0,0.63923544]
[1625644765614,1.13948919,34682.0,34678.0,0.63923544]
[1625644765916,1.13913367,34680.0,34678.0,0.63923544]
[1625644766036,0.24057544,34679.0,34678.0,0.29757544]
[1625644766158,1.37924126,34679.0,34678.0,0.29757544]
[1625644766401,2.50737767,34679.0,34678.0,0.29757544]
[1625644766517,2.43966008,34679.0,34678.0,0.29757544]
[1625644766699,0.83276008,34679.0,34678.0,0.29757544]
[1625644766817,0.80006008,34679.0,34678.0,0.79757544]
[1625644766937,0.001,34684.0,34678.0,1.22952644]
[1625644767058,0.9031,34693.0,34678.0,1.56364644]
[1625644767537,0.9031,34693.0,34679.0,0.00491539]
[1625644767721,0.9031,34693.0,34678.0,1.13514644]
[1625644767841,0.9031,34693.0,34678.0,0.70319544]
[1625644768077,1.14367544,34693.0,34692.0,0.24057544]
[1625644770785,1.14367544,34693.0,34692.0,0.62683544]
[1625644770903,0.9031,34693.0,34692.0,0.62683544]
[1625644772047,0.9031,34693.0,34692.0,0.86741088]
[1625644772345,0.7151,34693.0,34692.0,0.86741088]
[1625644772586,0.7151,34693.0,34692.0,1.36741088]
[1625644772706,0.7151,34693.0,34692.0,1.43891088]
[1625644772827,0.7151,34693.0,34692.0,0.93891088]
[1625644774690,0.542292,34693.0,34692.0,0.93891088]
[1625644775050,0.542292,34693.0,34692.0,1.43891088]
[1625644775649,0.542292,34693.0,34692.0,1.86875888]
[1625644776012,0.24057544,34709.0,34692.0,1.86875888]
[1625644776134,0.48115088,34716.0,34708.0,0.72172632]
[1625644776252,0.48115088,34716.0,34709.0,0.057]
[1625644778057,0.48115088,34716.0,34715.0,0.48115088]
[1625644778236,0.48115088,34716.0,34715.0,0.74849088]
[1625644778538,0.48115088,34716.0,34715.0,0.69149088]
[1625644778957,0.48115088,34716.0,34715.0,0.74849088]
[1625644779440,0.48115088,34716.0,34715.0,0.69149088]
[1625644780704,0.48115088,34716.0,34715.0,0.48115088]
[1625644781242,0.48115088,34716.0,34708.0,0.48115088]
[1625644781243,0.48115088,34716.0,34708.0,0.24057544]
[1625644781366,0.34061456,34713.0,34692.0,0.0725]
[1625644781486,1.74180182,34716.0,34692.0,0.0725]
[1625644781967,0.76537088,34716.0,34692.0,0.0725]
[1625644782087,0.24057544,34701.0,34700.0,0.24057544]
[1625644782210,0.18357544,34701.0,34700.0,0.24057544]
[1625644784017,0.01083717,34701.0,34700.0,0.24057544]
[1625644785638,0.01083717,34701.0,34697.0,0.24057544]
[1625644785759,0.26820717,34701.0,34697.0,0.24057544]
[1625644785879,0.26820717,34701.0,34693.0,0.24057544]
[1625644786119,0.48115088,34694.0,34693.0,0.24057544]
[1625644786602,0.01083717,34701.0,34696.0,4.2462]
[1625644786724,0.01083717,34701.0,34696.0,4.47092]